[Event "Titled Tuesday Blitz August 1 Late 2023"]
[White "Sjugirov, Sanan"]
[Black "Jakubowski, Krzysztof"]
[WhiteFideId "4189302"]
[BlackFideId "1112848"]
[WhiteElo "2953"]
[BlackElo "2649"]
[Result "1-0"]
[Round "3"]
[TimeControl "180+1"]
[Date "2023.08.01"]
[WhiteClock "0:00:03"]
[BlackClock "0:00:01"]
[Board "12"]

1. d4 {[%clk 0:03:00]}  Nf6 {[%clk 0:02:59]} 2. c4 {[%clk 0:03:01]}  e6 {[%clk 0:02:59]} 3. Nf3 {[%clk 0:03:01]}  b6 {[%clk 0:02:58]} 4. g3 {[%clk 0:03:00]}  Ba6 {[%clk 0:02:56]} 5. b3 {[%clk 0:02:54]}  c6 {[%clk 0:02:50]} 6. Bg2 {[%clk 0:02:50]}  d5 {[%clk 0:02:47]} 7. O-O {[%clk 0:02:49]}  Be7 {[%clk 0:02:44]} 8. Nc3 {[%clk 0:02:48]}  O-O {[%clk 0:02:38]} 9. Bf4 {[%clk 0:02:44]}  dxc4 {[%clk 0:02:09]} 10. Qc2 {[%clk 0:02:36]}  Nd5 {[%clk 0:01:59]} 11. Rfd1 {[%clk 0:02:34]}  cxb3 {[%clk 0:01:55]} 12. axb3 {[%clk 0:02:33]}  Bb7 {[%clk 0:01:54]} 13. Bd2 {[%clk 0:02:25]}  a5 {[%clk 0:01:51]} 14. h4 {[%clk 0:02:21]}  Nd7 {[%clk 0:01:44]} 15. Ng5 {[%clk 0:02:12]}  g6 {[%clk 0:01:42]} 16. Nce4 {[%clk 0:01:49]}  Rc8 {[%clk 0:01:35]} 17. Qb2 {[%clk 0:01:48]}  Ba6 {[%clk 0:01:31]} 18. Re1 {[%clk 0:01:45]}  N7f6 {[%clk 0:01:29]} 19. Rac1 {[%clk 0:01:41]}  Bb5 {[%clk 0:01:24]} 20. Nc3 {[%clk 0:01:33]}  Nxc3 {[%clk 0:01:23]} 21. Bxc3 {[%clk 0:01:34]}  Nd5 {[%clk 0:01:20]} 22. Bd2 {[%clk 0:01:33]}  Re8 {[%clk 0:01:18]} 23. Nf3 {[%clk 0:01:31]}  Nb4 {[%clk 0:01:05]} 24. h5 {[%clk 0:01:29]}  Bf8 {[%clk 0:01:00]} 25. Bg5 {[%clk 0:01:20]}  Qd6 {[%clk 0:00:55]} 26. Bf4 {[%clk 0:01:19]}  Qe7 {[%clk 0:00:54]} 27. Bg5 {[%clk 0:01:19]}  Qa7 {[%clk 0:00:53]} 28. Qd2 {[%clk 0:01:13]}  Nd5 {[%clk 0:00:49]} 29. Qb2 {[%clk 0:01:07]}  h6 {[%clk 0:00:45]} 30. Bd2 {[%clk 0:01:05]}  g5 {[%clk 0:00:45]} 31. Ne5 {[%clk 0:01:02]}  Qe7 {[%clk 0:00:37]} 32. Ng4 {[%clk 0:00:59]}  Nf6 {[%clk 0:00:31]} 33. Nxf6+ {[%clk 0:00:49]}  Qxf6 {[%clk 0:00:31]} 34. e4 {[%clk 0:00:50]}  Qe7 {[%clk 0:00:30]} 35. Bc3 {[%clk 0:00:47]}  Bg7 {[%clk 0:00:28]} 36. Qd2 {[%clk 0:00:44]}  Red8 {[%clk 0:00:26]} 37. Qe3 {[%clk 0:00:44]}  Qa3 {[%clk 0:00:24]} 38. Rb1 {[%clk 0:00:39]}  Rd7 {[%clk 0:00:20]} 39. Red1 {[%clk 0:00:35]}  Re8 {[%clk 0:00:20]} 40. Bb2 {[%clk 0:00:34]}  Qb4 {[%clk 0:00:19]} 41. Bc3 {[%clk 0:00:35]}  Qe7 {[%clk 0:00:20]} 42. e5 {[%clk 0:00:26]}  Red8 {[%clk 0:00:19]} 43. b4 {[%clk 0:00:18]}  a4 {[%clk 0:00:18]} 44. Be4 {[%clk 0:00:17]}  Ra7 {[%clk 0:00:16]} 45. Bc2 {[%clk 0:00:17]}  a3 {[%clk 0:00:15]} 46. Ra1 {[%clk 0:00:17]}  Qd7 {[%clk 0:00:13]} 47. Bb3 {[%clk 0:00:15]}  Qb7 {[%clk 0:00:11]} 48. f4 {[%clk 0:00:14]}  Qe7 {[%clk 0:00:10]} 49. Kg2 {[%clk 0:00:08]}  Kh8 {[%clk 0:00:08]} 50. Kh3 {[%clk 0:00:08]}  Rg8 {[%clk 0:00:07]} 51. Bc2 {[%clk 0:00:07]}  gxf4 {[%clk 0:00:07]} 52. gxf4 {[%clk 0:00:07]}  Bf8 {[%clk 0:00:07]} 53. Rg1 {[%clk 0:00:06]}  Rg7 {[%clk 0:00:06]} 54. Qe4 {[%clk 0:00:06]}  f5 {[%clk 0:00:06]} 55. exf6 {[%clk 0:00:06]}  Qxf6 {[%clk 0:00:07]} 56. Rg6 {[%clk 0:00:04]}  Qf7 {[%clk 0:00:05]} 57. Rxh6+ {[%clk 0:00:04]}  Kg8 {[%clk 0:00:06]} 58. Rg6 {[%clk 0:00:03]}  Bc4 {[%clk 0:00:05]} 59. Rag1 {[%clk 0:00:03]}  Bd5 {[%clk 0:00:04]} 60. Qe5 {[%clk 0:00:02]}  Qe8 {[%clk 0:00:02]} 61. h6 {[%clk 0:00:02]}  Rxg6 {[%clk 0:00:02]} 62. Rxg6+ {[%clk 0:00:03]}  Kh7 {[%clk 0:00:01]} 63. Rg7+ {[%clk 0:00:03]}  Kxh6 {[%clk 0:00:01]} 64. Qg5# {[%clk 0:00:03]} 1-0


[Site "https://www.chess.com"]

[Event "Titled Tuesday Blitz August 1 Late 2023"]
[White "Fishbein, Alexander"]
[Black "He, Anthony"]
[WhiteFideId "2000377"]
[BlackFideId "2088215"]
[WhiteElo "2647"]
[BlackElo "2945"]
[Result "0-1"]
[Round "3"]
[TimeControl "180+1"]
[Date "2023.08.01"]
[WhiteClock "0:00:26"]
[BlackClock "0:01:43"]
[Board "13"]

1. e4 {[%clk 0:03:00]}  c5 {[%clk 0:02:57]} 2. Nf3 {[%clk 0:02:57]}  Nc6 {[%clk 0:02:58]} 3. d4 {[%clk 0:02:55]}  cxd4 {[%clk 0:02:59]} 4. Nxd4 {[%clk 0:02:55]}  Nf6 {[%clk 0:02:59]} 5. Nc3 {[%clk 0:02:55]}  d6 {[%clk 0:03:00]} 6. Be2 {[%clk 0:02:53]}  e5 {[%clk 0:03:00]} 7. Nf3 {[%clk 0:02:53]}  h6 {[%clk 0:03:00]} 8. O-O {[%clk 0:02:53]}  Be7 {[%clk 0:02:59]} 9. h3 {[%clk 0:02:53]}  O-O {[%clk 0:03:00]} 10. Re1 {[%clk 0:02:53]}  Be6 {[%clk 0:03:00]} 11. Bf1 {[%clk 0:02:53]}  a5 {[%clk 0:03:00]} 12. Bb5 {[%clk 0:02:51]}  Rc8 {[%clk 0:02:58]} 13. a3 {[%clk 0:02:49]}  Na7 {[%clk 0:02:54]} 14. a4 {[%clk 0:02:46]}  Nc6 {[%clk 0:02:49]} 15. Nd5 {[%clk 0:02:35]}  Bxd5 {[%clk 0:02:48]} 16. exd5 {[%clk 0:02:35]}  Nb4 {[%clk 0:02:49]} 17. c4 {[%clk 0:02:24]}  Nd7 {[%clk 0:02:49]} 18. Bxd7 {[%clk 0:02:11]}  Qxd7 {[%clk 0:02:50]} 19. b3 {[%clk 0:02:08]}  b6 {[%clk 0:02:43]} 20. Be3 {[%clk 0:02:07]}  Qc7 {[%clk 0:02:41]} 21. Nd2 {[%clk 0:01:57]}  f5 {[%clk 0:02:41]} 22. Nb1 {[%clk 0:01:47]}  Bf6 {[%clk 0:02:33]} 23. Nc3 {[%clk 0:01:42]}  Qd8 {[%clk 0:02:29]} 24. Nb5 {[%clk 0:01:40]}  e4 {[%clk 0:02:28]} 25. Nd4 {[%clk 0:01:19]}  Qd7 {[%clk 0:02:13]} 26. Ne6 {[%clk 0:01:17]}  Bxa1 {[%clk 0:02:13]} 27. Bxb6 {[%clk 0:00:52]}  Be5 {[%clk 0:02:08]} 28. Bxa5 {[%clk 0:00:47]}  Nd3 {[%clk 0:02:08]} 29. Nxf8 {[%clk 0:00:46]}  Rxf8 {[%clk 0:02:09]} 30. Re3 {[%clk 0:00:45]}  Bd4 {[%clk 0:02:07]} 31. Rxd3 {[%clk 0:00:45]}  exd3 {[%clk 0:02:08]} 32. Qxd3 {[%clk 0:00:45]}  Bxf2+ {[%clk 0:02:09]} 33. Kf1 {[%clk 0:00:41]}  Qa7 {[%clk 0:01:58]} 34. Bc3 {[%clk 0:00:38]}  Bh4 {[%clk 0:01:55]} 35. Qd4 {[%clk 0:00:36]}  Qxd4 {[%clk 0:01:48]} 36. Bxd4 {[%clk 0:00:37]}  Rb8 {[%clk 0:01:48]} 37. a5 {[%clk 0:00:36]}  Rxb3 {[%clk 0:01:48]} 38. a6 {[%clk 0:00:36]}  Ra3 {[%clk 0:01:49]} 39. a7 {[%clk 0:00:36]}  Bf6 {[%clk 0:01:48]} 40. Bb6 {[%clk 0:00:33]}  Kf7 {[%clk 0:01:48]} 41. c5 {[%clk 0:00:26]}  Bd4 {[%clk 0:01:43]} 0-1


[Site "https://www.chess.com"]

[Event "Titled Tuesday Blitz August 1 Late 2023"]
[White "Demidov, Mikhail"]
[Black "Adewumi, Tanitoluwa"]
[WhiteFideId "4197143"]
[BlackFideId "30966396"]
[WhiteElo "2940"]
[BlackElo "2639"]
[Result "1-0"]
[Round "3"]
[TimeControl "180+1"]
[Date "2023.08.01"]
[WhiteClock "0:00:05"]
[BlackClock "0:00:14"]
[Board "14"]

1. Nf3 {[%clk 0:03:00]}  Nf6 {[%clk 0:02:59]} 2. g3 {[%clk 0:02:55]}  e6 {[%clk 0:02:59]} 3. Bg2 {[%clk 0:02:54]}  b5 {[%clk 0:02:59]} 4. O-O {[%clk 0:02:53]}  Bb7 {[%clk 0:03:00]} 5. d3 {[%clk 0:02:54]}  c5 {[%clk 0:03:00]} 6. c4 {[%clk 0:02:53]}  bxc4 {[%clk 0:02:56]} 7. dxc4 {[%clk 0:02:53]}  d5 {[%clk 0:02:56]} 8. cxd5 {[%clk 0:02:53]}  exd5 {[%clk 0:02:57]} 9. Nc3 {[%clk 0:02:46]}  Be7 {[%clk 0:02:57]} 10. Bg5 {[%clk 0:02:35]}  O-O {[%clk 0:02:53]} 11. Ne5 {[%clk 0:02:34]}  h6 {[%clk 0:02:47]} 12. Bxf6 {[%clk 0:02:32]}  Bxf6 {[%clk 0:02:48]} 13. Nd3 {[%clk 0:02:32]}  Na6 {[%clk 0:02:35]} 14. Rc1 {[%clk 0:02:29]}  Rc8 {[%clk 0:02:31]} 15. Qa4 {[%clk 0:02:25]}  Re8 {[%clk 0:02:21]} 16. e3 {[%clk 0:02:17]}  c4 {[%clk 0:01:47]} 17. Nf4 {[%clk 0:02:14]}  Nc5 {[%clk 0:01:47]} 18. Qb4 {[%clk 0:02:01]}  g5 {[%clk 0:01:18]} 19. Nfxd5 {[%clk 0:01:28]}  Bxd5 {[%clk 0:01:15]} 20. Nxd5 {[%clk 0:01:28]}  Nd3 {[%clk 0:01:11]} 21. Nxf6+ {[%clk 0:01:27]}  Qxf6 {[%clk 0:01:08]} 22. Qc3 {[%clk 0:01:28]}  Qxc3 {[%clk 0:01:04]} 23. Rxc3 {[%clk 0:01:29]}  Nxb2 {[%clk 0:01:04]} 24. Rb1 {[%clk 0:01:19]}  Na4 {[%clk 0:00:52]} 25. Rc2 {[%clk 0:01:18]}  c3 {[%clk 0:00:49]} 26. Rb4 {[%clk 0:01:17]}  Nb6 {[%clk 0:00:47]} 27. Rb3 {[%clk 0:01:12]}  Red8 {[%clk 0:00:43]} 28. Rbxc3 {[%clk 0:01:08]}  Rd1+ {[%clk 0:00:42]} 29. Bf1 {[%clk 0:01:07]}  Rxc3 {[%clk 0:00:38]} 30. Rxc3 {[%clk 0:01:07]}  Rd2 {[%clk 0:00:37]} 31. Ra3 {[%clk 0:01:03]}  Nc8 {[%clk 0:00:29]} 32. Rd3 {[%clk 0:00:54]}  Rc2 {[%clk 0:00:25]} 33. a4 {[%clk 0:00:49]}  Kg7 {[%clk 0:00:22]} 34. a5 {[%clk 0:00:44]}  Ra2 {[%clk 0:00:19]} 35. Rd8 {[%clk 0:00:44]}  Ne7 {[%clk 0:00:18]} 36. Rd7 {[%clk 0:00:44]}  Nc6 {[%clk 0:00:17]} 37. Rxf7+ {[%clk 0:00:34]}  Kxf7 {[%clk 0:00:16]} 38. Bc4+ {[%clk 0:00:34]}  Kf6 {[%clk 0:00:16]} 39. Bxa2 {[%clk 0:00:34]}  Nxa5 {[%clk 0:00:16]} 40. Bd5 {[%clk 0:00:27]}  Ke5 {[%clk 0:00:16]} 41. e4 {[%clk 0:00:27]}  g4 {[%clk 0:00:17]} 42. f4+ {[%clk 0:00:21]}  gxf3 {[%clk 0:00:16]} 43. Kf2 {[%clk 0:00:21]}  Kd4 {[%clk 0:00:17]} 44. Kxf3 {[%clk 0:00:20]}  Nc4 {[%clk 0:00:17]} 45. h4 {[%clk 0:00:08]}  a5 {[%clk 0:00:17]} 46. g4 {[%clk 0:00:03]}  a4 {[%clk 0:00:17]} 47. g5 {[%clk 0:00:03]}  h5 {[%clk 0:00:14]} 48. Bxc4 {[%clk 0:00:03]}  Kxc4 {[%clk 0:00:15]} 49. g6 {[%clk 0:00:04]}  a3 {[%clk 0:00:14]} 50. g7 {[%clk 0:00:05]}  a2 {[%clk 0:00:14]} 51. g8=Q+ {[%clk 0:00:05]}  Kc5 {[%clk 0:00:15]} 52. Qg7 {[%clk 0:00:06]}  a1=Q {[%clk 0:00:14]} 53. Qxa1 {[%clk 0:00:05]} 1-0


[Site "https://www.chess.com"]

[Event "Titled Tuesday Blitz August 1 Late 2023"]
[White "Zhigalko, Sergei"]
[Black "Sivakumar, Shaashwath"]
[WhiteFideId "13502956"]
[BlackFideId "30912156"]
[WhiteElo "2899"]
[BlackElo "2606"]
[Result "1-0"]
[Round "3"]
[TimeControl "180+1"]
[Date "2023.08.01"]
[WhiteClock "0:03:03"]
[BlackClock "0:02:33"]
[Board "18"]

1. e4 {[%clk 0:03:00]}  c5 {[%clk 0:02:54]} 2. Nf3 {[%clk 0:03:00]}  d6 {[%clk 0:02:54]} 3. d4 {[%clk 0:03:00]}  cxd4 {[%clk 0:02:55]} 4. Qxd4 {[%clk 0:03:01]}  Nc6 {[%clk 0:02:54]} 5. Bb5 {[%clk 0:03:01]}  Bd7 {[%clk 0:02:55]} 6. Bxc6 {[%clk 0:03:02]}  Bxc6 {[%clk 0:02:54]} 7. Nc3 {[%clk 0:03:02]}  Nf6 {[%clk 0:02:54]} 8. Bg5 {[%clk 0:03:02]}  e6 {[%clk 0:02:55]} 9. O-O-O {[%clk 0:03:02]}  Be7 {[%clk 0:02:56]} 10. Rhe1 {[%clk 0:03:02]}  O-O {[%clk 0:02:56]} 11. Kb1 {[%clk 0:03:02]}  Qc7 {[%clk 0:02:56]} 12. Qd2 {[%clk 0:03:02]}  Rfd8 {[%clk 0:02:55]} 13. Nd4 {[%clk 0:03:03]}  Rab8 {[%clk 0:02:55]} 14. f3 {[%clk 0:03:03]}  b5 {[%clk 0:02:55]} 15. g4 {[%clk 0:03:04]}  b4 {[%clk 0:02:53]} 16. Nce2 {[%clk 0:03:04]}  a5 {[%clk 0:02:53]} 17. Ng3 {[%clk 0:03:04]}  a4 {[%clk 0:02:51]} 18. Nh5 {[%clk 0:03:05]}  Ne8 {[%clk 0:02:35]} 19. Bxe7 {[%clk 0:03:04]}  Qxe7 {[%clk 0:02:33]} 20. Nxc6 {[%clk 0:03:03]} 1-0


[Site "https://www.chess.com"]

[Event "Titled Tuesday Blitz August 1 Late 2023"]
[White "Jimenez Almeida, Luis David"]
[Black "Kazakouski, Valery"]
[WhiteFideId "22242244"]
[BlackFideId "13507443"]
[WhiteElo "2606"]
[BlackElo "2892"]
[Result "0-1"]
[Round "3"]
[TimeControl "180+1"]
[Date "2023.08.01"]
[WhiteClock "0:00:00"]
[BlackClock "0:00:13"]
[Board "19"]

1. e4 {[%clk 0:03:00]}  c5 {[%clk 0:03:00]} 2. Nc3 {[%clk 0:03:00]}  Nc6 {[%clk 0:02:59]} 3. Nge2 {[%clk 0:03:00]}  Nf6 {[%clk 0:02:59]} 4. g3 {[%clk 0:03:01]}  h5 {[%clk 0:02:58]} 5. h3 {[%clk 0:03:00]}  d5 {[%clk 0:02:58]} 6. Bg2 {[%clk 0:02:58]}  d4 {[%clk 0:02:56]} 7. Nd5 {[%clk 0:02:57]}  Nd7 {[%clk 0:02:56]} 8. b3 {[%clk 0:02:43]}  g5 {[%clk 0:02:46]} 9. d3 {[%clk 0:02:24]}  e6 {[%clk 0:02:44]} 10. Bxg5 {[%clk 0:02:24]}  Qxg5 {[%clk 0:02:45]} 11. Nc7+ {[%clk 0:02:23]}  Kd8 {[%clk 0:02:46]} 12. Nxa8 {[%clk 0:02:24]}  b6 {[%clk 0:02:37]} 13. f4 {[%clk 0:02:16]}  Qg7 {[%clk 0:02:35]} 14. e5 {[%clk 0:02:10]}  Bb7 {[%clk 0:02:35]} 15. Nxb6 {[%clk 0:02:08]}  axb6 {[%clk 0:02:34]} 16. Qd2 {[%clk 0:02:07]}  Kc7 {[%clk 0:02:25]} 17. O-O-O {[%clk 0:02:04]}  b5 {[%clk 0:02:25]} 18. c3 {[%clk 0:01:59]}  dxc3 {[%clk 0:02:21]} 19. Nxc3 {[%clk 0:01:59]}  Nd4 {[%clk 0:02:12]} 20. Bxb7 {[%clk 0:01:56]}  Kxb7 {[%clk 0:02:13]} 21. Rhg1 {[%clk 0:01:49]}  Be7 {[%clk 0:02:12]} 22. Rdf1 {[%clk 0:01:45]}  Ra8 {[%clk 0:02:07]} 23. Ne4 {[%clk 0:01:40]}  Qh8 {[%clk 0:01:56]} 24. Kb1 {[%clk 0:01:37]}  Qb8 {[%clk 0:01:53]} 25. g4 {[%clk 0:01:32]}  hxg4 {[%clk 0:01:52]} 26. Rxg4 {[%clk 0:01:31]}  Nb6 {[%clk 0:01:42]} 27. Rg7 {[%clk 0:01:26]}  Qf8 {[%clk 0:01:42]} 28. Rg4 {[%clk 0:01:18]}  Nd5 {[%clk 0:01:41]} 29. Nc3 {[%clk 0:01:09]}  Nxc3+ {[%clk 0:01:33]} 30. Qxc3 {[%clk 0:01:10]}  Qh8 {[%clk 0:01:30]} 31. h4 {[%clk 0:01:02]}  Qh5 {[%clk 0:01:27]} 32. Rg2 {[%clk 0:00:53]}  Qxh4 {[%clk 0:01:20]} 33. Qd2 {[%clk 0:00:52]}  Qh3 {[%clk 0:01:14]} 34. Rgf2 {[%clk 0:00:43]}  Rd8 {[%clk 0:01:10]} 35. Rg1 {[%clk 0:00:31]}  Nc6 {[%clk 0:01:02]} 36. Rd1 {[%clk 0:00:29]}  Nb4 {[%clk 0:01:00]} 37. Rh2 {[%clk 0:00:26]}  Qf3 {[%clk 0:01:00]} 38. Rf2 {[%clk 0:00:26]}  Qd5 {[%clk 0:00:58]} 39. f5 {[%clk 0:00:25]}  Nxd3 {[%clk 0:00:53]} 40. fxe6 {[%clk 0:00:23]}  Qxe6 {[%clk 0:00:36]} 41. Rf3 {[%clk 0:00:20]}  Nxe5 {[%clk 0:00:34]} 42. Qe2 {[%clk 0:00:15]}  Rxd1+ {[%clk 0:00:33]} 43. Qxd1 {[%clk 0:00:16]}  Nxf3 {[%clk 0:00:33]} 44. Qxf3+ {[%clk 0:00:16]}  Kc7 {[%clk 0:00:33]} 45. Qa8 {[%clk 0:00:16]}  b4 {[%clk 0:00:31]} 46. Qa7+ {[%clk 0:00:15]}  Kd6 {[%clk 0:00:32]} 47. Kc2 {[%clk 0:00:15]}  f5 {[%clk 0:00:30]} 48. Qb6+ {[%clk 0:00:15]}  Ke5 {[%clk 0:00:31]} 49. Qc7+ {[%clk 0:00:15]}  Kf6 {[%clk 0:00:30]} 50. Qh2 {[%clk 0:00:13]}  Qe4+ {[%clk 0:00:30]} 51. Kc1 {[%clk 0:00:12]}  Qe1+ {[%clk 0:00:28]} 52. Kc2 {[%clk 0:00:12]}  Qc3+ {[%clk 0:00:29]} 53. Kb1 {[%clk 0:00:12]}  Ke6 {[%clk 0:00:27]} 54. Qe2+ {[%clk 0:00:10]}  Kd6 {[%clk 0:00:25]} 55. Qa6+ {[%clk 0:00:09]}  Ke5 {[%clk 0:00:25]} 56. Qe2+ {[%clk 0:00:09]}  Kf6 {[%clk 0:00:25]} 57. Qh5 {[%clk 0:00:07]}  Qe1+ {[%clk 0:00:24]} 58. Kc2 {[%clk 0:00:07]}  Qe4+ {[%clk 0:00:20]} 59. Kc1 {[%clk 0:00:07]}  Qf4+ {[%clk 0:00:19]} 60. Kc2 {[%clk 0:00:08]}  Qf2+ {[%clk 0:00:19]} 61. Kd3 {[%clk 0:00:09]}  Qf1+ {[%clk 0:00:17]} 62. Kc2 {[%clk 0:00:08]}  Qg2+ {[%clk 0:00:18]} 63. Kd3 {[%clk 0:00:08]}  Qe4+ {[%clk 0:00:18]} 64. Kd2 {[%clk 0:00:08]}  Ke6 {[%clk 0:00:18]} 65. Qe8 {[%clk 0:00:07]}  Qg2+ {[%clk 0:00:15]} 66. Kd3 {[%clk 0:00:07]}  Qd5+ {[%clk 0:00:16]} 67. Kc2 {[%clk 0:00:07]}  Qd7 {[%clk 0:00:17]} 68. Qg8+ {[%clk 0:00:07]}  Kd6 {[%clk 0:00:18]} 69. Qg6+ {[%clk 0:00:06]}  Qe6 {[%clk 0:00:18]} 70. Qe8 {[%clk 0:00:07]}  f4 {[%clk 0:00:17]} 71. Qb8+ {[%clk 0:00:06]}  Kd5 {[%clk 0:00:18]} 72. Qb7+ {[%clk 0:00:05]}  Kd4 {[%clk 0:00:17]} 73. Qc7 {[%clk 0:00:04]}  Qe4+ {[%clk 0:00:16]} 74. Kc1 {[%clk 0:00:04]}  Ke3 {[%clk 0:00:15]} 75. a4 {[%clk 0:00:04]}  bxa3 {[%clk 0:00:15]} 76. Qa7 {[%clk 0:00:03]}  f3 {[%clk 0:00:13]} 77. Qxa3 {[%clk 0:00:02]}  f2 {[%clk 0:00:12]} 78. Kb2 {[%clk 0:00:01]}  Qd4+ {[%clk 0:00:12]} 79. Ka2 {[%clk 0:00:01]}  Qd2+ {[%clk 0:00:12]} 80. Qb2 {[%clk 0:00:00]}  Qxb2+ {[%clk 0:00:13]} 0-1


[Site "https://www.chess.com"]

[Event "Titled Tuesday Blitz August 1 Late 2023"]
[White "Aravindh, Chithambaram VR."]
[Black "Pinheiro, Iung Alicio de O."]
[WhiteFideId "5072786"]
[BlackFideId "2104350"]
[WhiteElo "2890"]
[BlackElo "2605"]
[Result "1-0"]
[Round "3"]
[TimeControl "180+1"]
[Date "2023.08.01"]
[WhiteClock "0:00:32"]
[BlackClock "0:00:11"]
[Board "20"]

1. e3 {[%clk 0:03:00]}  d5 {[%clk 0:02:58]} 2. Nf3 {[%clk 0:02:59]}  c6 {[%clk 0:02:57]} 3. c4 {[%clk 0:03:00]}  Nf6 {[%clk 0:02:57]} 4. b3 {[%clk 0:02:59]}  Bf5 {[%clk 0:02:56]} 5. Bb2 {[%clk 0:02:59]}  e6 {[%clk 0:02:56]} 6. d4 {[%clk 0:02:54]}  Bb4+ {[%clk 0:02:51]} 7. Nbd2 {[%clk 0:02:54]}  Ne4 {[%clk 0:02:41]} 8. a3 {[%clk 0:02:53]}  Ba5 {[%clk 0:02:34]} 9. b4 {[%clk 0:02:50]}  Bc7 {[%clk 0:02:33]} 10. Be2 {[%clk 0:02:49]}  Nd7 {[%clk 0:02:33]} 11. O-O {[%clk 0:02:48]}  Qf6 {[%clk 0:02:29]} 12. Rc1 {[%clk 0:02:41]}  g5 {[%clk 0:02:20]} 13. cxd5 {[%clk 0:02:35]}  exd5 {[%clk 0:02:18]} 14. b5 {[%clk 0:02:35]}  g4 {[%clk 0:02:17]} 15. bxc6 {[%clk 0:02:31]}  bxc6 {[%clk 0:02:15]} 16. Ne5 {[%clk 0:02:26]}  Nxe5 {[%clk 0:01:38]} 17. dxe5 {[%clk 0:02:27]}  Bxe5 {[%clk 0:01:38]} 18. Nxe4 {[%clk 0:02:13]}  Bxe4 {[%clk 0:01:35]} 19. Bxe5 {[%clk 0:02:08]}  Qxe5 {[%clk 0:01:35]} 20. Rxc6 {[%clk 0:02:08]}  h5 {[%clk 0:01:29]} 21. f3 {[%clk 0:01:54]}  gxf3 {[%clk 0:01:24]} 22. Bxf3 {[%clk 0:01:55]}  Rg8 {[%clk 0:01:02]} 23. Qa4 {[%clk 0:01:49]}  Kf8 {[%clk 0:01:01]} 24. Qb4+ {[%clk 0:01:01]}  Kg7 {[%clk 0:00:25]} 25. Bxe4 {[%clk 0:01:00]}  Qxe4 {[%clk 0:00:26]} 26. Qc3+ {[%clk 0:00:59]}  Kf8 {[%clk 0:00:23]} 27. Rxf7+ {[%clk 0:00:48]}  Kxf7 {[%clk 0:00:20]} 28. Qf6+ {[%clk 0:00:47]}  Ke8 {[%clk 0:00:19]} 29. Re6+ {[%clk 0:00:48]}  Qxe6 {[%clk 0:00:17]} 30. Qxe6+ {[%clk 0:00:49]}  Kf8 {[%clk 0:00:18]} 31. Qxd5 {[%clk 0:00:34]}  Re8 {[%clk 0:00:18]} 32. Qxh5 {[%clk 0:00:32]}  Rxe3 {[%clk 0:00:11]} 33. Qh6+ {[%clk 0:00:32]} 1-0


[Site "https://www.chess.com"]

[Event "Titled Tuesday Blitz August 1 Late 2023"]
[White "Wu, Rochelle"]
[Black "Perez Ponsa, Federico"]
[WhiteFideId "30908132"]
[BlackFideId "117927"]
[WhiteElo "2605"]
[BlackElo "2885"]
[Result "1-0"]
[Round "3"]
[TimeControl "180+1"]
[Date "2023.08.01"]
[WhiteClock "0:00:15"]
[BlackClock "0:00:03"]
[Board "21"]

1. d4 {[%clk 0:02:59]}  Nf6 {[%clk 0:02:53]} 2. c4 {[%clk 0:02:58]}  g6 {[%clk 0:02:53]} 3. Nc3 {[%clk 0:02:58]}  Bg7 {[%clk 0:02:53]} 4. e4 {[%clk 0:02:58]}  d6 {[%clk 0:02:54]} 5. h3 {[%clk 0:02:57]}  O-O {[%clk 0:02:49]} 6. Be3 {[%clk 0:02:57]}  e5 {[%clk 0:02:49]} 7. d5 {[%clk 0:02:57]}  Na6 {[%clk 0:02:49]} 8. g4 {[%clk 0:02:57]}  Nc5 {[%clk 0:02:49]} 9. f3 {[%clk 0:02:57]}  a5 {[%clk 0:02:49]} 10. Nge2 {[%clk 0:02:56]}  c6 {[%clk 0:02:47]} 11. Ng3 {[%clk 0:02:53]}  h5 {[%clk 0:02:47]} 12. gxh5 {[%clk 0:02:51]}  Nxh5 {[%clk 0:02:46]} 13. Nxh5 {[%clk 0:02:51]}  Qh4+ {[%clk 0:02:46]} 14. Bf2 {[%clk 0:02:51]}  Qxh5 {[%clk 0:02:46]} 15. Be2 {[%clk 0:02:36]}  Qh6 {[%clk 0:02:40]} 16. Qd2 {[%clk 0:02:31]}  Qxd2+ {[%clk 0:02:35]} 17. Kxd2 {[%clk 0:02:32]}  Bh6+ {[%clk 0:02:35]} 18. Kc2 {[%clk 0:02:31]}  Na6 {[%clk 0:02:29]} 19. Na4 {[%clk 0:02:25]}  c5 {[%clk 0:02:23]} 20. Nb6 {[%clk 0:02:15]}  Rb8 {[%clk 0:02:22]} 21. Nxc8 {[%clk 0:02:14]}  Rbxc8 {[%clk 0:02:20]} 22. a3 {[%clk 0:02:12]}  Kg7 {[%clk 0:01:52]} 23. Rag1 {[%clk 0:01:58]}  Rh8 {[%clk 0:01:50]} 24. h4 {[%clk 0:01:46]}  Bf4 {[%clk 0:01:49]} 25. h5 {[%clk 0:01:19]}  Nc7 {[%clk 0:01:44]} 26. Bf1 {[%clk 0:01:13]}  Kf6 {[%clk 0:01:41]} 27. Bh4+ {[%clk 0:01:02]}  g5 {[%clk 0:01:37]} 28. Be1 {[%clk 0:01:02]}  a4 {[%clk 0:01:27]} 29. Ba5 {[%clk 0:00:52]}  Na8 {[%clk 0:01:22]} 30. Bh3 {[%clk 0:00:48]}  Rb8 {[%clk 0:01:23]} 31. Bd7 {[%clk 0:00:48]}  b6 {[%clk 0:01:18]} 32. Bc3 {[%clk 0:00:43]}  Nc7 {[%clk 0:01:16]} 33. Bxa4 {[%clk 0:00:41]}  b5 {[%clk 0:01:16]} 34. Bxb5 {[%clk 0:00:39]}  Nxb5 {[%clk 0:01:17]} 35. cxb5 {[%clk 0:00:39]}  Rxb5 {[%clk 0:01:18]} 36. a4 {[%clk 0:00:38]}  Rbb8 {[%clk 0:01:18]} 37. a5 {[%clk 0:00:38]}  Kg7 {[%clk 0:01:14]} 38. Kd3 {[%clk 0:00:36]}  Ra8 {[%clk 0:01:13]} 39. Ra1 {[%clk 0:00:31]}  Ra6 {[%clk 0:01:12]} 40. Kc4 {[%clk 0:00:31]}  Rha8 {[%clk 0:01:12]} 41. Ra2 {[%clk 0:00:21]}  Kh6 {[%clk 0:01:12]} 42. Kb5 {[%clk 0:00:20]}  f6 {[%clk 0:01:11]} 43. Kc4 {[%clk 0:00:20]}  R8a7 {[%clk 0:01:11]} 44. Kb5 {[%clk 0:00:20]}  Ra8 {[%clk 0:01:12]} 45. Kc4 {[%clk 0:00:21]}  Rb8 {[%clk 0:01:01]} 46. Ra3 {[%clk 0:00:21]}  Rba8 {[%clk 0:00:56]} 47. Rb3 {[%clk 0:00:21]}  Be3 {[%clk 0:00:53]} 48. Rb6 {[%clk 0:00:18]}  Rxb6 {[%clk 0:00:34]} 49. axb6 {[%clk 0:00:19]}  Rb8 {[%clk 0:00:35]} 50. Ba5 {[%clk 0:00:19]}  f5 {[%clk 0:00:31]} 51. b3 {[%clk 0:00:18]}  g4 {[%clk 0:00:31]} 52. exf5 {[%clk 0:00:18]}  g3 {[%clk 0:00:30]} 53. Kb5 {[%clk 0:00:13]}  g2 {[%clk 0:00:30]} 54. Ra1 {[%clk 0:00:14]}  Bd4 {[%clk 0:00:20]} 55. Rb1 {[%clk 0:00:13]}  Kxh5 {[%clk 0:00:19]} 56. Kc6 {[%clk 0:00:13]}  Kg5 {[%clk 0:00:18]} 57. b7 {[%clk 0:00:12]}  Kxf5 {[%clk 0:00:17]} 58. Bc7 {[%clk 0:00:12]}  Rxb7 {[%clk 0:00:06]} 59. Kxb7 {[%clk 0:00:13]}  g1=Q {[%clk 0:00:06]} 60. Rxg1 {[%clk 0:00:13]}  Bxg1 {[%clk 0:00:07]} 61. Bxd6 {[%clk 0:00:14]}  e4 {[%clk 0:00:05]} 62. fxe4+ {[%clk 0:00:14]}  Kxe4 {[%clk 0:00:06]} 63. Kc6 {[%clk 0:00:14]}  Bf2 {[%clk 0:00:02]} 64. Bxc5 {[%clk 0:00:14]}  Bg3 {[%clk 0:00:02]} 65. d6 {[%clk 0:00:15]}  Kf5 {[%clk 0:00:02]} 66. d7 {[%clk 0:00:15]}  Bh4 {[%clk 0:00:03]} 67. b4 {[%clk 0:00:14]}  Ke6 {[%clk 0:00:04]} 68. b5 {[%clk 0:00:15]}  Bd8 {[%clk 0:00:03]} 69. b6 {[%clk 0:00:15]} 1-0


[Site "https://www.chess.com"]